bitfinex/quotes_SOLUSD_20220307
["timestamp","ask_amount","ask_price","bid_price","bid_amount"]
[1646667466249,6.0,85.482,85.411,0.25]
[1646667466448,5.851,85.481,85.411,0.25]
[1646667466647,6.0,85.48,85.411,0.25]
[1646667466849,6.0,85.48,85.402,0.49312537]
[1646667467052,37.89553524,85.479,85.402,0.25]
[1646667467251,6.0,85.478,85.42,17.5607]
[1646667467454,0.25,85.477,85.421,0.25]
[1646667469155,17.5626,85.47,85.421,0.25]
[1646667469357,0.25,85.469,85.421,0.25]
[1646667469555,0.25,85.469,85.411,0.25]
[1646667470356,17.5645,85.46,85.401,48.4944]
[1646667470558,122.95,85.459,85.401,48.4944]
[1646667470757,122.95,85.459,85.36,58.559]
[1646667470959,148.79085364,85.459,85.361,48.194]
[1646667471158,116.7,85.457,85.361,48.194]
[1646667471356,116.7,85.455,85.361,48.194]
[1646667471557,48.08476416,85.449,85.361,48.194]
[1646667471759,6.25,85.448,85.363,116.7]
[1646667471957,0.25,85.448,85.365,116.7]
[1646667472159,48.08476416,85.449,85.367,186.76]
[1646667472357,1.56794177,85.473,85.371,186.76]
[1646667472558,6.25,85.472,85.4,17.557]
[1646667472759,6.0,85.471,85.401,6.25]
[1646667472959,0.25,85.47,85.401,6.25]
[1646667473258,0.25,85.472,85.401,0.25]
[1646667473659,17.5626,85.47,85.41,17.5626]
[1646667473859,6.25,85.469,85.41,17.5626]
[1646667474107,6.25,85.469,85.411,0.25]
[1646667474460,0.25,85.469,85.411,0.25]
[1646667474661,6.0,85.47,85.411,0.25]
[1646667475159,25.84085364,85.469,85.402,0.25]
[1646667475460,6.0,85.468,85.402,0.25]
[1646667475659,6.0,85.468,85.395,0.25]
[1646667475861,17.5653,85.46,85.393,46.5337]
[1646667476062,6.25,85.459,85.393,46.5337]
[1646667476260,116.7,85.457,85.394,6.0]
[1646667476461,116.7,85.455,85.34,14.06]
[1646667476664,6.104,85.454,85.363,53.3971]
[1646667476860,17.5717,85.44,85.363,53.3971]
[1646667477061,6.25,85.439,85.363,53.3971]
[1646667477260,35.85091774,85.438,85.364,0.25]
[1646667477461,6.25,85.437,85.364,0.25]
[1646667478060,17.5713,85.43,85.364,0.25]
[1646667478263,6.25,85.429,85.364,0.25]
[1646667478862,0.25,85.429,85.364,0.25]
[1646667479262,0.25,85.436,85.364,0.25]
[1646667479664,0.25,85.436,85.363,47.3971]
[1646667479866,17.5712,85.43,85.37,17.5716]
[1646667480067,12.104,85.429,85.37,17.5716]
[1646667480465,12.104,85.429,85.363,47.3971]
[1646667481065,17.573,85.42,85.364,0.25]
[1646667481270,6.25,85.419,85.364,0.25]
[1646667481889,0.25,85.419,85.364,0.25]
[1646667482089,0.25,85.419,85.37,17.5716]
[1646667482292,6.25,85.429,85.371,0.25]
[1646667483089,0.25,85.429,85.371,0.25]
[1646667483288,6.25,85.434,85.371,0.25]
[1646667484094,17.5729,85.42,85.371,0.25]
[1646667484291,6.25,85.419,85.371,0.25]
[1646667484492,6.0,85.419,85.38,17.5694]
[1646667484696,35.85091774,85.438,85.381,0.25]
[1646667484893,119.954,85.454,85.381,0.25]
[1646667485092,119.954,85.454,85.381,3.08613526]
[1646667485093,114.1,85.454,85.381,3.08613526]
[1646667485293,114.1,85.454,85.383,186.76]
[1646667485495,114.1,85.454,85.385,186.76]
[1646667485694,114.1,85.454,85.391,116.7]
[1646667485894,39.63637847,85.453,85.396,58.35]
[1646667486096,39.63637847,85.453,85.398,58.35]
[1646667486294,39.63637847,85.453,85.399,12.103]
[1646667486495,2.83613526,85.452,85.399,0.25]
[1646667486697,2.33613526,85.452,85.399,0.25]
[1646667487195,9.08613526,85.451,85.391,0.25]
[1646667487397,32.09085364,85.451,85.391,0.25]
[1646667487595,116.7,85.449,85.364,28.3761]
[1646667487798,17.5662,85.45,85.364,22.5231]
[1646667487799,1.56794177,85.443,85.364,22.5231]
[1646667487995,1.56794177,85.437,85.364,22.5231]
[1646667488196,116.7,85.435,85.364,22.5231]
[1646667488397,116.7,85.433,85.343,5.854]
[1646667488697,1.56794177,85.427,85.321,53.0471]
[1646667488897,17.5794,85.4,85.322,6.0]
[1646667489096,46.41444523,85.399,85.322,6.0]
[1646667489301,46.41444523,85.399,85.33,17.5799]
[1646667490999,46.41444523,85.399,85.331,0.25]
[1646667491398,46.41444523,85.399,85.34,17.5779]
[1646667491599,46.41444523,85.399,85.341,0.25]
[1646667491902,17.5788,85.39,85.342,5.856]
[1646667492099,0.25,85.389,85.323,5.857]
[1646667492299,0.25,85.389,85.324,6.0]
[1646667492500,0.25,85.389,85.325,5.857]
[1646667493300,6.25,85.389,85.326,0.25]
[1646667493504,6.25,85.389,85.325,0.25]
[1646667493800,0.25,85.389,85.33,17.5798]
[1646667494100,6.25,85.396,85.331,0.25]
[1646667494600,2.83613526,85.395,85.331,0.25]
[1646667494900,6.25,85.394,85.331,0.25]
[1646667495101,6.25,85.394,85.34,17.578]
[1646667495102,6.0,85.394,85.34,17.578]
[1646667495299,2.83613526,85.412,85.342,0.26699154]
[1646667495501,2.83613526,85.412,85.344,0.26699154]
[1646667495802,2.83613526,85.412,85.344,6.51699154]
[1646667496000,2.83613526,85.412,85.344,6.25]
[1646667496199,2.83613526,85.412,85.344,12.106]
[1646667496401,44.60612802,85.413,85.35,17.5722]
[1646667496603,44.60612802,85.413,85.351,6.47576897]
[1646667497003,44.60612802,85.413,85.351,6.25]
[1646667497200,44.60612802,85.413,85.351,0.25]
[1646667497401,44.60612802,85.413,85.352,11.856]
[1646667497605,0.25,85.412,85.353,0.25]
[1646667497801,0.25,85.412,85.353,6.25]
[1646667498202,5.856,85.422,85.361,70.06]
[1646667498401,5.856,85.422,85.353,0.25]
[1646667498402,5.855,85.445,85.364,0.35912392]
[1646667498601,6.0,85.44,85.366,0.35912392]
[1646667498801,6.0,85.44,85.369,0.37445509]
[1646667499005,6.0,85.44,85.37,5.854]
[1646667499302,44.74987493,85.439,85.371,6.25]
[1646667499504,6.0,85.438,85.372,5.854]
[1646667499701,0.25,85.437,85.38,17.5664]
[1646667499902,0.25,85.437,85.381,0.25]
[1646667500505,2.83613526,85.436,85.381,0.25]
[1646667500709,6.25,85.435,85.381,0.25]
[1646667500905,6.25,85.435,85.365,0.25]
[1646667501105,17.5719,85.43,85.366,5.854]
[1646667501305,6.25,85.429,85.367,0.25]
[1646667501507,9.08613526,85.429,85.367,0.25]
[1646667501705,9.08613526,85.429,85.39,0.44823436]
[1646667502010,2.83613526,85.428,85.39,0.44823436]
[1646667502206,5.80176564,85.427,85.37,17.5718]
[1646667502506,5.80176564,85.427,85.371,0.25]
[1646667502705,2.83613526,85.426,85.371,0.25]
[1646667503908,2.83613526,85.426,85.37,17.5718]
[1646667504108,17.5745,85.42,85.35,17.5758]
[1646667504308,6.25,85.419,85.335,5.855]
[1646667504511,9.08613526,85.419,85.335,5.855]
[1646667504708,34.9269889,85.419,85.335,5.855]
[1646667504908,2.83613526,85.418,85.335,5.855]
[1646667505108,17.5775,85.41,85.335,5.855]
[1646667505308,45.82031245,85.409,85.365,0.25]
[1646667505509,48.65644771,85.409,85.365,0.25]
[1646667505713,2.83613526,85.408,85.365,0.25]
[1646667505909,6.25,85.407,85.365,0.25]
[1646667506113,116.7,85.406,85.335,5.855]
[1646667506312,128.806,85.405,85.335,5.855]
[1646667506512,12.106,85.405,85.335,5.855]
[1646667506712,9.08613526,85.405,85.335,5.855]
[1646667506913,2.83613526,85.404,85.335,5.855]
[1646667507116,17.0784,85.4,85.34,17.578]
[1646667507313,6.25,85.399,85.34,17.578]
[1646667507516,9.08613526,85.399,85.341,0.25]
[1646667507716,9.08613526,85.399,85.34,17.578]
[1646667507917,2.83613526,85.398,85.34,17.578]
[1646667508116,0.25,85.397,85.34,17.578]
[1646667508517,2.83613526,85.396,85.34,17.578]
[1646667508717,0.25,85.395,85.34,17.578]
[1646667509120,0.25,85.395,85.341,0.25]
[1646667511319,6.25,85.395,85.336,0.25]
[1646667513220,17.5805,85.39,85.335,5.855]
[1646667513422,0.25,85.389,85.335,5.855]
[1646667513621,9.08613526,85.389,85.335,5.855]
[1646667513822,116.7,85.388,85.335,5.855]
[1646667514021,116.7,85.386,85.335,5.855]
[1646667514224,17.5835,85.38,85.335,5.855]
[1646667514522,46.02761972,85.379,85.335,5.855]
[1646667514725,46.02761972,85.379,85.336,0.25]
[1646667514923,48.86375498,85.379,85.336,0.25]
[1646667516526,17.5846,85.37,85.336,0.25]
[1646667516725,0.25,85.369,85.336,0.25]
[1646667517126,6.25,85.369,85.336,0.25]
[1646667517429,0.25,85.369,85.336,0.25]
[1646667518028,6.25,85.369,85.336,0.25]
[1646667518429,0.25,85.369,85.336,0.25]
[1646667519729,0.25,85.377,85.336,0.25]
[1646667520331,39.77761972,85.379,85.336,0.25]
[1646667520332,0.25,85.378,85.336,0.25]
[1646667521733,2.83613526,85.393,85.336,0.25]
[1646667521933,6.0,85.392,85.34,17.578]
[1646667522133,2.83613526,85.403,85.341,0.25]
[1646667522435,6.0,85.402,85.341,0.25]
[1646667522854,38.65156033,85.401,85.35,17.5723]
[1646667523031,6.0,85.4,85.351,0.25]
[1646667523232,0.25,85.399,85.351,6.25]
[1646667523434,0.25,85.4,85.351,0.25]
[1646667524239,17.8284,85.4,85.34,17.5766]
[1646667524439,6.0,85.399,85.341,0.25]
[1646667524738,0.25,85.398,85.339,0.25]
[1646667525540,0.25,85.398,85.35,17.5762]
[1646667525839,0.25,85.399,85.351,0.25]
[1646667526939,0.25,85.399,85.341,0.25]
[1646667527743,17.5801,85.39,85.339,0.25]
[1646667527943,0.25,85.389,85.339,0.25]
[1646667528139,0.25,85.389,85.338,23.021]
[1646667528140,9.08613526,85.389,85.338,23.021]
[1646667528541,2.83613526,85.388,85.338,23.021]
[1646667528741,6.25,85.387,85.338,23.021]
[1646667529142,6.0,85.387,85.338,23.021]
[1646667529343,6.0,85.397,85.339,6.0]
[1646667529543,6.0,85.397,85.34,0.25]
[1646667529841,6.0,85.4,85.34,0.25]
[1646667530045,6.0,85.4,85.34,17.8277]
[1646667530243,0.25,85.399,85.341,6.0]
[1646667530458,3.08613526,85.399,85.342,0.25]
[1646667530660,3.08613526,85.399,85.34,0.25]
[1646667530858,6.0,85.398,85.34,0.25]
[1646667531060,17.5807,85.39,85.34,0.25]
[1646667531259,8.83613526,85.398,85.34,0.25]
[1646667531260,0.25,85.389,85.34,0.25]
[1646667531460,0.25,85.389,85.301,70.06]
[1646667531657,5.857,85.388,85.302,54.6501]
[1646667531859,6.25,85.387,85.302,54.6501]
[1646667532060,9.08613526,85.387,85.302,54.6501]
[1646667532458,2.83613526,85.386,85.303,58.35]
[1646667532661,12.107,85.385,85.304,6.25]
[1646667533064,2.83613526,85.384,85.304,6.25]
[1646667533258,17.5824,85.38,85.31,75.9344]
[1646667533460,0.25,85.379,85.311,6.25]
[1646667533659,0.25,85.379,85.311,6.0]
[1646667533859,3.08613526,85.379,85.311,6.0]
[1646667534260,3.08613526,85.379,85.32,17.5814]
[1646667534962,6.0,85.383,85.321,0.25]
[1646667535162,1.56794177,85.39,85.321,0.25]
[1646667535163,1.56794177,85.39,85.322,0.26251781]
[1646667535360,38.65156033,85.401,85.323,5.857]
[1646667535361,0.25,85.389,85.323,5.857]
[1646667535560,0.25,85.389,85.324,6.52626908]
[1646667535760,0.25,85.389,85.326,0.27626908]
[1646667535963,0.25,85.389,85.328,0.27626908]
[1646667536160,0.25,85.389,85.33,17.5746]
[1646667536362,0.25,85.389,85.331,6.107]
[1646667536660,0.25,85.399,85.332,0.2422073]
[1646667536860,0.25,85.399,85.332,6.0]
[1646667537160,0.25,85.399,85.333,6.107]
[1646667537361,0.25,85.399,85.334,6.0]
[1646667537560,0.25,85.399,85.335,0.25]
[1646667538161,0.25,85.399,85.34,17.5781]
[1646667538361,0.25,85.399,85.341,6.25]
[1646667538763,5.856,85.398,85.341,6.25]
[1646667539063,6.25,85.397,85.341,6.25]
[1646667539263,6.25,85.397,85.342,6.26354584]
[1646667539464,6.25,85.397,85.344,0.29146871]
[1646667539665,6.0,85.396,85.35,17.5762]
[1646667539866,0.25,85.395,85.351,0.25]
[1646667540463,6.0,85.4,85.351,0.25]
[1646667540667,0.25,85.399,85.36,17.5737]
[1646667540865,0.25,85.399,85.361,0.25]
[1646667541665,41.15400739,85.399,85.361,0.25]
[1646667541865,6.0,85.398,85.361,0.25]
[1646667542067,0.25,85.397,85.361,0.25]
[1646667542466,0.25,85.397,85.351,0.25]
[1646667543768,0.25,85.397,85.36,17.5736]
[1646667543966,0.25,85.397,85.361,6.25]
[1646667544166,0.25,85.399,85.361,6.25]
[1646667544567,0.25,85.399,85.361,0.25]
[1646667544766,47.28969322,85.399,85.361,0.25]
[1646667544967,6.0,85.398,85.361,0.25]
[1646667545167,0.25,85.397,85.34,58.5781]
[1646667545365,47.03969322,85.399,85.341,6.25]
[1646667545568,0.25,85.398,85.341,6.25]
[1646667545967,0.25,85.398,85.36,17.5737]
[1646667546167,0.25,85.398,85.361,0.25]
[1646667546367,0.25,85.398,85.341,6.0]
[1646667546568,0.25,85.398,85.342,0.25]
[1646667546771,6.25,85.398,85.342,0.25]
[1646667546969,31.05035557,85.397,85.342,0.25]
[1646667547166,31.05035557,85.397,85.33,58.35]
[1646667547167,6.25,85.396,85.33,58.35]
[1646667547368,6.25,85.396,85.334,0.25]
[1646667547369,116.7,85.395,85.334,0.25]
[1646667547568,116.7,85.395,85.29,24.7708]
[1646667547569,1.56794177,85.387,85.29,24.7708]
[1646667547769,1.56794177,85.382,85.3,47.038]
[1646667547969,7.81794177,85.381,85.3,47.038]
[1646667548172,29.78216208,85.381,85.301,6.0]
[1646667548369,1.56794177,85.379,85.301,6.0]
[1646667548671,6.25,85.378,85.31,17.5826]
[1646667548869,9.08613526,85.378,85.311,0.25]
[1646667549069,9.08613526,85.378,85.311,6.25]
[1646667549070,3.08613526,85.378,85.311,6.25]
[1646667549270,2.83613526,85.377,85.311,6.25]
[1646667549470,0.25,85.376,85.311,6.25]
[1646667549670,0.25,85.376,85.33,17.5789]
[1646667549871,2.83613526,85.377,85.331,0.25]
[1646667550070,1.56794177,85.389,85.331,0.25]
[1646667550270,47.03969322,85.399,85.332,0.25829463]
[1646667550673,47.03969322,85.399,85.332,58.60829463]
[1646667550871,47.03969322,85.399,85.331,30.4106]
[1646667550872,47.03969322,85.399,85.341,0.29195106]
[1646667551071,47.03969322,85.399,85.341,0.54195106]
[1646667551271,12.106,85.398,85.341,0.29195106]
[1646667551471,1.56794177,85.394,85.331,24.1606]
[1646667551671,1.56794177,85.391,85.331,24.1606]
[1646667551869,31.25534177,85.39,85.331,24.1606]
[1646667552069,31.00534177,85.39,85.331,24.1606]
[1646667552272,0.25,85.389,85.331,24.1606]
[1646667552670,0.25,85.389,85.332,0.25]
[1646667552871,47.03969322,85.399,85.332,0.25]
[1646667552872,48.60763499,85.399,85.34,17.5782]
[1646667553074,0.25,85.398,85.341,0.25]
[1646667554277,0.25,85.398,85.333,0.25]
[1646667555178,0.25,85.398,85.35,17.5741]
[1646667555379,0.25,85.398,85.351,0.25]
[1646667557681,0.25,85.398,85.36,17.5741]
[1646667557883,1.56794177,85.407,85.361,0.25]
[1646667558183,6.0,85.406,85.362,0.22105814]
[1646667558385,1.56794177,85.426,85.368,116.7]
[1646667558581,22.6961,85.472,85.367,70.06]
[1646667558582,1.56794177,85.428,85.372,116.7]
[1646667558782,1.56794177,85.455,85.391,116.7]
[1646667558984,1.56794177,85.455,85.4,58.5125]
[1646667559184,100.0,85.476,85.401,116.95]
[1646667559386,1.56794177,85.482,85.404,70.06]
[1646667559588,1.56794177,85.484,85.407,186.76]
[1646667559791,1.56794177,85.485,85.411,186.76]
[1646667559987,1.56794177,85.486,85.43,17.5555]
[1646667560186,1.56794177,85.487,85.431,30.7712]
[1646667560389,1.56794177,85.487,85.444,116.7]
[1646667560588,1.56794177,85.498,85.448,116.7]
[1646667560792,1.56794177,85.501,85.45,116.7]
[1646667560990,1.56794177,85.502,85.451,6.79048423]
[1646667561189,1.56794177,85.501,85.451,0.25]
[1646667561491,47.46483961,85.5,85.451,0.25]
[1646667561691,1.81794177,85.499,85.451,0.25]
[1646667561989,0.25,85.499,85.451,0.25]
[1646667562191,6.25,85.499,85.445,0.25]
[1646667563291,6.25,85.499,85.432,6.25]
[1646667563496,6.25,85.499,85.432,6.0]
[1646667563991,5.849,85.498,85.44,17.5569]
[1646667564190,6.25,85.497,85.44,17.5569]
[1646667564392,6.0,85.499,85.44,75.9069]
[1646667564591,114.1,85.501,85.441,6.54048423]
[1646667564790,6.0,85.5,85.441,6.54048423]
[1646667564991,114.1,85.501,85.442,187.01]
[1646667565190,114.1,85.501,85.457,186.76]
[1646667565394,34.79432389,85.5,85.458,6.25]
[1646667565790,34.79432389,85.5,85.458,0.25]
[1646667566092,52.35222389,85.5,85.458,0.25]
[1646667566291,0.25,85.499,85.458,0.25]
[1646667566489,0.25,85.499,85.445,0.25]
[1646667567492,0.25,85.499,85.445,6.25]
[1646667570196,0.25,85.499,85.445,0.25]
[1646667570399,17.5597,85.49,85.38,14.07]
[1646667570601,12.101,85.489,85.41,47.5479]
[1646667570799,9.08613526,85.489,85.41,47.5479]
[1646667571200,39.69540597,85.487,85.41,47.5479]
[1646667571397,17.5616,85.48,85.41,47.5479]
[1646667571624,12.101,85.479,85.41,47.5479]
[1646667571822,12.101,85.479,85.41,65.1111]
[1646667572024,14.93713526,85.479,85.41,65.1111]
[1646667572423,2.83613526,85.478,85.41,47.5479]
[1646667572624,12.101,85.477,85.41,47.5479]
[1646667572825,37.68526522,85.477,85.41,47.5479]
[1646667573023,2.83613526,85.476,85.41,47.5479]
[1646667573228,39.40336754,85.474,85.41,47.5479]
[1646667573424,12.101,85.473,85.41,47.5479]
[1646667573625,17.5642,85.47,85.41,47.5479]
[1646667573829,6.25,85.469,85.41,65.1111]
[1646667574124,0.25,85.469,85.411,0.25]
[1646667574825,0.25,85.472,85.411,0.25]
[1646667575025,5.851,85.471,85.411,0.25]
[1646667575226,6.25,85.47,85.411,0.25]
[1646667575427,5.852,85.469,85.411,0.25]
[1646667575626,6.25,85.468,85.411,0.25]
[1646667575828,5.852,85.467,85.411,0.25]
[1646667576027,0.25,85.466,85.411,0.25]
[1646667576226,2.83613526,85.466,85.411,0.25]
[1646667576429,0.25,85.465,85.411,0.25]
[1646667577627,0.25,85.468,85.411,0.25]
[1646667577827,0.25,85.468,85.411,6.25]
[1646667578428,0.25,85.468,85.411,0.25]
[1646667578628,17.5662,85.46,85.411,0.25]
[1646667578830,116.7,85.457,85.317,5.79264797]
[1646667579030,116.7,85.455,85.375,24.4651]
[1646667579228,6.25,85.454,85.375,24.4651]
[1646667579429,5.853,85.453,85.375,24.4651]
[1646667579629,6.25,85.452,85.38,17.5696]
[1646667579931,5.853,85.451,85.38,17.5696]
[1646667580128,6.25,85.45,85.38,17.5696]
[1646667580428,12.103,85.449,85.381,0.25]
[1646667580633,14.93913526,85.449,85.381,0.25]
[1646667580832,2.83613526,85.448,85.381,0.25]
[1646667581030,12.103,85.447,85.381,0.25]
[1646667581432,44.91271673,85.445,85.381,0.25]
[1646667581633,12.103,85.444,85.381,0.25]
[1646667581832,14.93913526,85.444,85.381,0.25]
[1646667582032,2.83613526,85.443,85.381,0.25]
[1646667582232,12.103,85.442,85.381,0.25]
[1646667582635,2.83613526,85.441,85.381,0.25]
[1646667582834,12.104,85.44,85.376,0.25]
[1646667583035,0.25,85.44,85.376,0.25]
[1646667583235,3.08613526,85.44,85.376,0.25]
[1646667584036,6.0,85.439,85.376,0.25]
[1646667584239,0.25,85.438,85.376,0.25]
[1646667584437,3.08613526,85.438,85.376,0.25]
[1646667584636,6.0,85.437,85.376,0.25]
[1646667584838,0.25,85.436,85.376,0.25]
[1646667585037,6.25,85.436,85.376,0.25]
[1646667585840,0.25,85.436,85.376,6.25]
[1646667586043,0.25,85.436,85.38,17.5693]
[1646667586240,6.104,85.436,85.381,6.25]
[1646667587444,0.25,85.436,85.381,6.25]
[1646667588442,5.854,85.446,85.39,17.5666]
[1646667588642,2.83613526,85.447,85.39,17.5666]
[1646667588643,2.83613526,85.447,85.391,64.6]
[1646667588843,2.83613526,85.457,85.392,0.27658433]
[1646667589044,1.56794177,85.46,85.393,58.35]
[1646667589243,1.56794177,85.464,85.398,186.76]
[1646667589443,39.86867911,85.464,85.4,245.11]
[1646667589646,1.56794177,85.475,85.402,116.7]
[1646667589845,6.0,85.474,85.404,116.7]
[1646667590046,6.0,85.477,85.406,116.7]
[1646667590244,6.0,85.479,85.407,6.66130785]
[1646667590449,0.25,85.478,85.407,6.25]
[1646667590645,42.19400549,85.478,85.408,0.41130785]
[1646667590947,6.0,85.477,85.408,6.0]
[1646667591146,6.101,85.476,85.42,17.5592]
[1646667591346,6.0,85.475,85.421,0.25]
[1646667591547,6.101,85.474,85.421,0.25]
[1646667591748,1.56794177,85.468,85.421,0.25]
[1646667591946,12.101,85.467,85.421,0.25]
[1646667592150,6.25,85.467,85.404,24.7829]
[1646667592346,45.8850873,85.465,85.405,0.25]
[1646667592546,45.8850873,85.465,85.41,17.562]
[1646667592547,6.25,85.464,85.41,17.562]
[1646667592746,9.08613526,85.464,85.411,0.25]
[1646667593148,2.83613526,85.463,85.411,0.25]
[1646667593446,6.25,85.462,85.411,0.25]
[1646667593649,6.25,85.462,85.42,17.5617]
[1646667593847,6.25,85.462,85.404,24.7829]
[1646667593848,2.83613526,85.461,85.404,24.7829]
[1646667594047,6.25,85.46,85.404,24.7829]
[1646667594446,9.08613526,85.46,85.404,24.7829]
[1646667594849,9.08613526,85.46,85.41,17.5636]
[1646667595146,9.08613526,85.46,85.411,0.25]
[1646667595747,9.08613526,85.46,85.404,24.7829]
[1646667595950,9.08613526,85.46,85.405,0.25]
[1646667595951,26.65233526,85.46,85.405,0.25]
[1646667596148,1.56794177,85.459,85.405,0.25]
[1646667596348,7.81794177,85.458,85.377,70.06]
[1646667596549,10.65407703,85.458,85.378,6.0]
[1646667596750,137.27502626,85.458,85.376,6.0]
[1646667596952,36.90622022,85.445,85.38,17.5696]
[1646667597151,0.25,85.444,85.38,17.5696]
[1646667597353,0.25,85.444,85.381,6.0]
[1646667597651,0.25,85.444,85.382,116.7]
[1646667597868,0.25,85.444,85.383,6.25]
[1646667598450,0.25,85.444,85.383,0.25]
[1646667598649,2.83613526,85.443,85.381,6.25]
[1646667598851,0.25,85.442,85.381,6.0]
[1646667599549,0.25,85.442,85.39,17.5674]
[1646667599953,0.25,85.444,85.39,17.5674]
[1646667602470,1.56794177,85.447,85.392,23.6425]
[1646667602666,1.56794177,85.447,85.393,6.25]
[1646667602867,24.715,85.474,85.4,75.9158]
[1646667602868,1.56794177,85.456,85.4,75.9158]
[1646667603066,1.56794177,85.456,85.401,6.25]
[1646667603268,1.56794177,85.459,85.401,6.25]
[1646667603466,1.56794177,85.458,85.401,6.25]
[1646667603869,1.56794177,85.458,85.41,17.5628]
[1646667604070,1.56794177,85.458,85.411,0.25]
[1646667604672,1.56794177,85.457,85.411,0.25]
[1646667604871,1.56794177,85.458,85.411,0.25]
[1646667605078,1.56794177,85.457,85.411,0.25]
[1646667605274,1.56794177,85.46,85.404,187.01]
[1646667605494,1.56794177,85.466,85.406,186.76]
[1646667605694,1.56794177,85.471,85.408,116.7]
[1646667605894,6.0,85.47,85.409,6.25]
[1646667606097,39.89205751,85.469,85.42,17.5612]
[1646667606296,6.0,85.468,85.421,12.101]
[1646667606495,6.0,85.468,85.421,6.25]
[1646667606697,0.25,85.467,85.421,0.25]
[1646667607097,0.25,85.467,85.43,17.5597]
[1646667607296,6.0,85.468,85.431,0.25]
[1646667607496,6.0,85.472,85.431,0.25]
[1646667607699,6.0,85.477,85.431,0.25]
[1646667607898,0.25,85.476,85.431,0.25]
[1646667608297,6.0,85.478,85.44,17.5572]
[1646667608498,6.0,85.479,85.441,0.25]
[1646667608699,6.0,85.483,85.441,0.25]
[1646667609098,6.0,85.487,85.442,5.849]
[1646667609397,6.0,85.487,85.443,0.25]
[1646667609598,0.25,85.486,85.443,0.25]
[1646667610200,0.25,85.486,85.442,0.25]
[1646667610397,0.25,85.486,85.443,5.849]
[1646667610601,0.25,85.486,85.444,0.25]
[1646667610797,0.25,85.488,85.444,0.25]
[1646667611798,0.25,85.488,85.441,0.25]
[1646667611999,0.25,85.488,85.45,17.5554]
[1646667612199,0.25,85.488,85.451,0.25]
[1646667612399,0.25,85.491,85.451,0.25]
[1646667612600,0.25,85.492,85.451,0.25]
[1646667612802,0.25,85.494,85.451,0.25]
[1646667613000,42.31138565,85.496,85.451,0.25]
[1646667613202,6.0,85.495,85.451,0.25]
[1646667613500,0.25,85.494,85.451,0.25]
[1646667613700,0.25,85.494,85.441,12.099]
[1646667613901,1.56794177,85.493,85.441,6.25]
[1646667614101,6.25,85.492,85.441,6.25]
[1646667614300,34.43382356,85.492,85.442,6.0]
[1646667614500,17.5584,85.49,85.443,0.25]